[Event "Young Talents Mukachevo 2020"]
[Site "Mukachevo"]
[Date "2020.11.24"]
[Round "3.3"]
[White "Osadchuk, Dmitry"]
[Black "Prokofiev, Valentyn"]
[Result "1/2-1/2"]
[ECO "E81"]
[WhiteElo "2173"]
[BlackElo "2095"]
[Annotator "NA RC"]
[PlyCount "172"]
[EventDate "2020.11.23"]
[EventType "tourn"]
[EventCountry "UKR"]
[SourceTitle "playchess.com"]
[Source "ChessBase"]
[SourceQuality "1"]
[TimeControl "40/5400+30:900+30"]

1. e4 {[%emt 0:00:00]} g6 {[%emt 0:01:12]} 2. d4 {[%emt 0:00:00]} Bg7 {[%emt 0:00:04]} 3. c4 {[%emt 0:00:07]} d6 {[%emt 0:00:10]} 4. Nc3 {[%emt 0:00:06]} Nf6 {[%emt 0:00:05]} 5. f3 {[%emt 0:00:17]} O-O {[%emt 0:00:30]} 6. Be3 {[%emt 0:00:05]} Nbd7 {[%emt 0:01:14]} 7. Bd3 {[%emt 0:00:07]} c5 {[%emt 0:00:36]} 8. Nge2 {[%emt 0:00:13] The main line 8.Nge2 scores better than 8.d5.} b6 {[%emt 0:02:10]} 9. Qd2 {[%emt 0:00:25]} cxd4 {[%emt 0:00:40]} 10. Nxd4 {[%emt 0:00:05]} Bb7 {[%emt 0:00:07]} 11. O-O {[%emt 0:01:13]} Rc8 {[%emt 0:01:13] [#]} 12. Rac1 $146 {[%emt 0:00:18]} ({Predecessor:} 12. b3 a6 13. Rac1 e6 14. Rfd1 Re8 15. Bf1 Qc7 16. Kh1 Bf8 17. Bh6 Bxh6 18. Qxh6 {1-0 (81) Shimanov,A (2587)-Moiseenko,V (2526) Khanty-Mansiysk 2019}) 12... Nc5 {[%emt 0:04:31]} 13. Rfd1 {[%emt 0:00:59]} Qd7 {[%emt 0:01:51]} 14. Bf1 {[%emt 0:01:47]} Rfd8 {[%emt 0:01:08]} 15. b4 {[%emt 0:01:24]} Ne6 {[%emt 0:02:26]} 16. Nb3 {[%emt 0:00:10]} Qc7 {[%emt 0:00:36]} 17. a4 {[%emt 0:03:53]} Qb8 {[%emt 0:05:59]} 18. a5 {[%emt 0:00:44]} Nd7 {[%emt 0:00:32]} 19. Nd5 {[%emt 0:04:21]} Bxd5 {[%emt 0:02:06]} 20. cxd5 {[%emt 0:00:23]} Nef8 {[%emt 0:00:20]} 21. Nd4 {[%emt 0:01:21]} Rxc1 {[%emt 0:00:43]} 22. Rxc1 {[%emt 0:00:12]} Bxd4 {[%emt 0:00:13]} 23. Bxd4 {[%emt 0:00:22]} Rc8 {[%emt 0:02:59]} 24. a6 {[%emt 0:03:30]} Rc7 {[%emt 0:02:32]} 25. Bb5 {[%emt 0:05:40]} Qc8 {[%emt 0:00:53]} 26. Rxc7 {[%emt 0:00:47]} Qxc7 {[%emt 0:00:02]} 27. Qc3 {[%emt 0:01:37]} Qxc3 {[%emt 0:01:59]} 28. Bxc3 {[%emt 0:00:07]} Nb8 {[%emt 0:00:31]} 29. Bd4 {[%emt 0:00:06]} Nfd7 {[%emt 0:00:20]} 30. Kf2 {[%emt 0:00:27]} Kf8 {[%emt 0:01:11]} 31. Ke3 {[%emt 0:00:44]} e5 {[%emt 0:08:08]} 32. dxe6 $1 {[%emt 0:00:43]} fxe6 {[%emt 0:00:05]} 33. f4 {[%emt 0:01:42]} (33. Kd2 $18) 33... e5 {[%emt 0:01:26]} 34. Bc3 {[%emt 0:00:16]} Ke7 {[%emt 0:00:04]} 35. g3 {[%emt 0:01:51]} Kf6 {[%emt 0:00:41]} 36. Kd3 {[%emt 0:03:05]} Nf8 {[%emt 0:00:20]} (36... Ke7 $16 37. h3 Ke6 38. Bc4+ Kf6) 37. Bd2 {[%emt 0:01:52]} (37. g4 $16) 37... Ne6 {[%emt 0:00:28]} 38. h4 {[%emt 0:28:09]} Nc7 {[%emt 0:02:06]} 39. fxe5+ {[%emt 0:00:06]} Kxe5 $2 {[%emt 0:04:40] [#]} (39... dxe5 $14 40. Bc4 Ncxa6) 40. Bc4 $1 {[%emt 0:00:00]} Kf6 {[%emt 0:00:00]} 41. Bg5+ {[%emt 0:09:52]} Kg7 {[%emt 0:00:23]} 42. Bf4 {[%emt 0:00:04]} b5 {[%emt 0:02:24]} 43. Bxd6 {[%emt 0:07:29]} Nbxa6 {[%emt 0:00:04]} 44. Bd5 {[%emt 0:05:00]} Kf6 {[%emt 0:06:04]} 45. Bb7 {[%emt 0:12:40]} Ke6 {[%emt 0:00:23]} 46. e5 {[%emt 0:00:16]} Nxb4+ {[%emt 0:00:56]} 47. Bxb4 {[%emt 0:00:05]} Kxe5 $18 {[%emt 0:00:02]} 48. Bc5 {[%emt 0:02:52]} a6 {[%emt 0:15:52]} 49. Bd4+ {[%emt 0:00:13]} Kd6 {[%emt 0:03:06]} 50. Ke4 {[%emt 0:00:23]} a5 {[%emt 0:00:56]} 51. Be5+ {[%emt 0:01:56]} Kd7 {[%emt 0:00:03]} 52. Bxc7 {[%emt 0:03:12]} Kxc7 {[%emt 0:00:03]} 53. Bd5 {[%emt 0:00:06]} a4 {[%emt 0:01:02]} 54. Bg8 {[%emt 0:00:44]} a3 {[%emt 0:00:29]} 55. Kd4 {[%emt 0:02:25]} Kd6 {[%emt 0:00:08]} 56. Kc3 {[%emt 0:00:28]} h6 {[%emt 0:01:01]} 57. Bf7 {[%emt 0:03:57]} Ke5 {[%emt 0:03:24]} 58. Bxg6 {[%emt 0:02:38]} b4+ {[%emt 0:00:03]} 59. Kb3 {[%emt 0:00:09]} Kd4 {[%emt 0:00:08]} 60. Bf7 {[%emt 0:02:29]} Ke3 {[%emt 0:00:08]} 61. Bd5 {[%emt 0:00:23]} Kd4 {[%emt 0:00:11]} 62. Bc6 {[%emt 0:00:44]} Ke5 {[%emt 0:00:19]} 63. Bb7 {[%emt 0:02:16]} Kf5 {[%emt 0:00:08]} 64. Bf3 {[%emt 0:00:04]} Ke5 {[%emt 0:00:13]} 65. Kc2 {[%emt 0:04:10]} Kf5 {[%emt 0:00:28]} 66. Kb3 {[%emt 0:02:07]} Ke5 {[%emt 0:00:05]} 67. Ka2 {[%emt 0:00:09]} Kf5 {[%emt 0:00:10]} 68. Bd1 {[%emt 0:01:29]} Ke4 {[%emt 0:00:03]} 69. Bh5 {[%emt 0:00:23]} Kf5 {[%emt 0:00:09]} 70. Kb3 {[%emt 0:00:28]} Ke4 {[%emt 0:00:10]} 71. Ka2 {[%emt 0:01:14]} Kf5 {[%emt 0:00:04]} 72. Bf3 {[%emt 0:00:04]} Ke5 {[%emt 0:00:10]} 73. Kb3 {[%emt 0:00:10]} Kf5 {[%emt 0:00:40]} 74. h5 {[%emt 0:01:21]} Kg5 {[%emt 0:00:05]} 75. Be2 {[%emt 0:00:29]} Kf5 {[%emt 0:00:05]} 76. Bd1 {[%emt 0:00:36]} Kg5 {[%emt 0:00:05]} 77. Bf3 {[%emt 0:00:25]} Kf5 {[%emt 0:00:08]} 78. Bd5 {[%emt 0:00:43]} Kg4 {[%emt 0:00:08]} 79. Kxb4 {[%emt 0:00:05]} Kxg3 {[%emt 0:00:18]} 80. Kxa3 {[%emt 0:00:07]} Kh4 {[%emt 0:00:12]} 81. Bf3 {[%emt 0:00:18]} Kg5 {[%emt 0:00:04]} 82. Kb4 {[%emt 0:00:04]} Kf6 {[%emt 0:00:08]} 83. Kc5 {[%emt 0:00:05]} Kg7 {[%emt 0:00:03]} 84. Kd6 {[%emt 0:00:05]} Kg8 {[%emt 0:00:04]} 85. Ke6 {[%emt 0:00:06]} Kg7 {[%emt 0:00:04]} 86. Ke7 {[%emt 0:00:07]} Kh7 {[%emt 0:00:04]} 1/2-1/2

[Event "Young Talents Mukachevo 2020"]
[Site "Mukachevo"]
[Date "2020.11.28"]
[Round "9.3"]
[White "Samunenkov, Ihor"]
[Black "Lozynskyi, Bohdan"]
[Result "0-1"]
[ECO "D02"]
[WhiteElo "2142"]
[BlackElo "2077"]
[Annotator "ChessBase"]
[PlyCount "96"]
[EventDate "2020.11.23"]
[EventType "tourn"]
[EventCountry "UKR"]
[SourceTitle "playchess.com"]
[Source "ChessBase"]
[SourceQuality "1"]
[TimeControl "40/5400+30:900+30"]

1. d4 {[%emt 0:00:00]} d5 {[%emt 0:00:00]} 2. Nf3 {[%emt 0:00:00]} Nf6 {[%emt 0:00:00]} 3. g3 {[%emt 0:00:00]} e6 {[%emt 0:00:00]} 4. Bg2 {[%emt 0:00:03]} Be7 {[%emt 0:00:00]} 5. c4 {[%emt 0:00:22]} O-O {[%emt 0:00:04]} 6. O-O {[%emt 0:00:05]} dxc4 {[%emt 0:00:03]} 7. Qa4 {[%emt 0:00:06]} a6 {[%emt 0:00:07]} 8. Qxc4 {[%emt 0:00:06]} b5 {[%emt 0:00:03]} 9. Qc2 {[%emt 0:00:08]} Bb7 {[%emt 0:00:02]} 10. Bd2 {[%emt 0:00:07]} Be4 {[%emt 0:00:04]} 11. Qc1 {[%emt 0:00:24]} c6 {[%emt 0:00:08]} 12. Rd1 {[%emt 0:00:12]} Nbd7 {[%emt 0:00:21]} 13. Nc3 {[%emt 0:02:23]} Bg6 {[%emt 0:00:08]} 14. a3 {[%emt 0:00:07]} Rc8 {[%emt 0:00:07]} 15. b4 {[%emt 0:07:33]} Nd5 {[%emt 0:00:55]} 16. Re1 {[%emt 0:04:26]} N5b6 {[%emt 0:10:59]} 17. Bg5 {[%emt 0:06:04]} f6 {[%emt 0:05:36]} 18. Bf4 {[%emt 0:08:25]} Nc4 {[%emt 0:04:03]} 19. Bh3 {[%emt 0:08:50]} Bf5 20. Bxf5 {[%emt 0:07:37]} exf5 {[%emt 0:06:23]} 21. Qc2 {[%emt 0:00:48]} g6 {[%emt 0:01:34]} 22. e4 {[%emt 0:07:48]} fxe4 23. Nxe4 {[%emt 0:01:13]} Ndb6 {[%emt 0:04:51]} 24. Nc5 {[%emt 0:05:49]} Bxc5 {[%emt 0:03:55]} 25. dxc5 {[%emt 0:00:18]} Nd5 {[%emt 0:00:07]} 26. Bh6 {[%emt 0:06:00]} Re8 {[%emt 0:01:24]} 27. Rxe8+ {[%emt 0:02:24]} Qxe8 {[%emt 0:00:02]} 28. Re1 {[%emt 0:00:12]} Qd7 {[%emt 0:01:46]} 29. Nd2 {[%emt 0:02:53]} Nxd2 {[%emt 0:03:08]} 30. Bxd2 {[%emt 0:01:46]} Re8 {[%emt 0:00:47]} 31. Rxe8+ {[%emt 0:02:41]} Qxe8 {[%emt 0:00:05]} 32. a4 {[%emt 0:00:13]} Qe2 {[%emt 0:02:11]} 33. axb5 {[%emt 0:00:55]} axb5 {[%emt 0:00:17]} 34. Qa2 {[%emt 0:02:01]} g5 {[%emt 0:04:49]} 35. h4 {[%emt 0:05:08]} gxh4 {[%emt 0:02:05]} 36. gxh4 {[%emt 0:00:05]} Qg4+ {[%emt 0:00:51]} 37. Kh2 {[%emt 0:02:24]} Qxh4+ {[%emt 0:00:17]} 38. Kg1 {[%emt 0:00:13]} Qg4+ {[%emt 0:00:23]} 39. Kh2 {[%emt 0:00:05]} Qe2 {[%emt 0:02:55]} 40. Kg3 {[%emt 0:00:00]} Kf7 {[%emt 0:00:00]} 41. Qc2 {[%emt 0:02:15]} Qe5+ {[%emt 0:03:46]} 42. Kg2 {[%emt 0:01:39]} f5 {[%emt 0:01:55]} 43. Qa2 {[%emt 0:01:22]} Qe4+ {[%emt 0:00:36]} 44. Kg1 {[%emt 0:01:27]} Qg4+ {[%emt 0:00:57]} 45. Kh2 {[%emt 0:00:06]} f4 {[%emt 0:03:08]} 46. Qa7+ {[%emt 0:01:07]} Ne7 {[%emt 0:03:27]} 47. Qc7 {[%emt 0:02:00]} Qh5+ {[%emt 0:00:54]} 48. Kg1 {[%emt 0:00:28]} Qd1+ {[%emt 0:00:03]} 0-1